Cogmind - Beta 16.1 @@@ ROGUE MODE // 2026.04.19 @ 17:01:44 Player: eseft Result: Destroyed by Y-45 Defender with Beam Rifle Performance ------------- Evolutions (1) 500 Regions Visited (2) 400 Robots Destroyed (22) 110 Value Destroyed (653) 653 Prototype IDs (1) 20 Alien Tech Used (0) 0 Bonus (0) 0 TOTAL SCORE: 1683 Bonus ------- None Cogmind --------- Core Integrity 0/400 Matter 265/300 Energy 100/100 System Corruption 0% Temperature Cool (9) Movement Flying (40) Location -9/Materials Parts ------- > --- POWER (1) -------- (None) > --- PROPULSION (3) --- Flight Unit > --- UTILITY (3) ------ Advanced Visual Processing Unit Signal Interpreter > --- WEAPON (2) ------- Faulty Advanced Beam Cannon > --- INVENTORY (5) ---- Light Treads Aluminum Leg Particle Cannon Light Assault Rifle Grenade Launcher Peak State ------------ > --- POWER ------------ Deuterium Engine > --- PROPULSION ------- Aluminum Leg Aluminum Leg Aluminum Leg > --- UTILITY ---------- Small Storage Unit Improved Sensor Array ECM Suite > --- WEAPON ----------- Light Assault Rifle Autogun > --- INVENTORY -------- Deuterium Engine Light Treads Light Treads High-capacity Matter Pod Advanced Visual Processing Unit Light Armor Plating Small Laser [Rating: 15] Favorites ----------- Power Ion Engine Engine Ion Engine Propulsion Aluminum Leg Treads Light Treads Leg Aluminum Leg Flight Unit Flight Unit Utility Small Storage Unit Device Improved Sensor Array Storage Small Storage Unit Processor Advanced Visual Processing Unit Protection Light Armor Plating Weapon Light Assault Rifle Energy Gun Small Laser Energy Cannon Advanced Beam Cannon Ballistic Gun Light Assault Rifle Build | -11 -10 -9 ------- Run | Yrd Mat Mat Slots Evolved 2 | . . 2 Power . | . . . Propulsion 1 | . . 1 Utility 1 | . . 1 Weapon . | . . . Parts Attached 29 | 6 2 21 Power 4 | 1 . 3 Engine 4 | 1 . 3 Core . | . . . Reactor . | . . . Propulsion 10 | 2 . 8 Treads 2 | . . 2 Leg 5 | 2 . 3 Wheel . | . . . Hover . | . . . Flight 3 | . . 3 Utility 7 | 1 2 4 Device 2 | . . 2 Storage 2 | 1 1 . Processor 2 | . . 2 Hackware . | . . . Protection 1 | . 1 . Artifact . | . . . Weapon 8 | 2 . 6 Energy Gun 4 | . . 4 Energy Cannon 1 | . . 1 Ballistic Gun 3 | 2 . 1 Ballistic Cannon . | . . . Launcher . | . . . Special Weapon . | . . . Impact Weapon . | . . . Slashing Weapon . | . . . Piercing Weapon . | . . . Special Melee Weapon . | . . . Unidentified Prototypes 1 | . . 1 Parts Lost 20 | . . 20 Power 3 | . . 3 Propulsion 8 | . . 8 Utility 3 | . . 3 Weapon 6 | . . 6 Highest Loss Streak 10 | . . 10 To Critical Strikes . | . . . Average Backups 5 | 2 6 5 Power . | . 1 . Propulsion 2 | 1 2 1 Utility 1 | . 1 1 Weapon 1 | . 2 1 Tool/Special . | . . . Unused Backups 14 | . 6 8 Power 1 | . . 1 Propulsion 3 | . 1 2 Utility 3 | . 2 1 Weapon 7 | . 3 4 Tool/Special . | . . . Average Slot Usage (%) 88 | . 94 82 Engine 11 | . 14 9 Treads 1 | . . 3 Leg 21 | . 28 14 Flight 3 | . . 6 Device 4 | . . 8 Storage 15 | . 19 11 Processor 2 | . . 5 Protection 2 | . 2 2 Energy Gun 4 | . . 8 Energy Cannon 1 | . . 2 Ballistic Gun 17 | . 28 8 Peak Build Rating 15 | 6 7 15 Average Rating 8 | 3 6 11 On Entrance 4 | . 6 7 Avg Prop Armor Cover (%) . | . . . Naked Turns . | . . . Heaviest Build 25 | 13 17 25 Greatest Support 40 | 20 20 40 Greatest Overweight (x) 6 | 4 . 6 Average Overweight (x) . | 1 . . Largest Inventory Capacity 8 | 8 8 8 Average Capacity 7 | 7 8 7 Most Carried 8 | 6 8 8 Average Carried 5 | 3 6 5 Final Capacity 8 | 8 8 5 Final Carried 8 | 4 8 5 Class Distribution -------------------- 78% | Mutant 21% | Scavenger-Mutant Dominant Class ---------------- Mutant | -10/Materials Mutant | -9/Materials Resources | -11 -10 -9 ----------- Run | Yrd Mat Mat Matter Collected 766 | 212 124 430 Remotely . | . . . Salvage Created 797 | . 200 597 Parts 36 | . 7 29 Haulers Intercepted . | . . . Recyclers Shooed 3 | . 2 1 Parts Field Recycled . | . . . Retrieved Matter . | . . . Parts Self-Destructed . | . . . Prevented . | . . . Parts Restored . | . . . Kills | -11 -10 -9 ------- Run | Yrd Mat Mat Combat Hostiles Destroyed 18 | . 4 14 Guns 18 | . 4 14 Classes Destroyed 5 | . 2 3 Recycler 2 | . . 2 Watcher 2 | . 1 1 Swarmer 4 | . . 4 Grunt 13 | . 4 9 Sentry 1 | . . 1 Best Kill Streak 7 | . 3 7 Combat Bots Only 6 | . 2 6 Max Kills in Single Turn 2 | . 1 2 Gunslinging 1 | . . 1 Exploded . | . . . Melee . | . . . Uniques/NPCs Destroyed . | . . . Combat | -11 -10 -9 -------- Run | Yrd Mat Mat Hostile Shots Fired 251 | . 22 229 Missed 77 | . 5 72 Hits 174 | . 17 157 Projectile 174 | . 17 157 Critical Strikes 6 | . 1 5 Damage Taken 2297 | . 232 2065 Core 498 | . 85 413 Absorbed by Shields . | . . . Core Remaining (%) 83 | 100 66 . Volleys Fired 74 | . 19 55 Largest 2 | . 2 2 Hottest 96 | . 40 96 Shots Fired 140 | . 38 102 Gun 140 | . 38 102 Cannon . | . . . Launcher . | . . . Special . | . . . Kinetic 90 | . 38 52 Thermal 50 | . . 50 Explosive . | . . . Electromagnetic . | . . . Robot Hit Streak 20 | . 5 20 Robot Miss Streak 3 | . 1 3 Penetration Max . | . . . Secondary Targets 6 | . 1 5 Max Gunslinging Chain 1 | . 1 1 Shots Hit Robots 98 | . 23 75 Core Hits 40 | . 12 28 Critical Kills 1 | . 1 . Critical Parts Destroyed . | . . . Critical Strikes 2 | . 1 1 Burn 1 | . . 1 Destroy 1 | . 1 . Melee Attacks . | . . . Impact . | . . . Slashing . | . . . Piercing . | . . . Sneak Attacks . | . . . Combat Hostiles . | . . . Follow-up Attacks . | . . . Damage Inflicted 1715 | . 233 1482 Guns 1195 | . 231 964 Cannons . | . . . Explosions 518 | . . 518 Melee . | . . . Ramming 2 | . 2 . Kinetic 726 | . 231 495 Thermal 688 | . . 688 Explosive 200 | . . 200 Electromagnetic 99 | . . 99 Impact . | . . . Slashing . | . . . Piercing . | . . . Highest Corruption . | . . . Average Corruption . | . . . Corruption Purged . | . . . Corruption Blocked . | . . . Overload Shots . | . . . Overflow Damage 13 | . . 13 Projectiles . | . . . Explosions 13 | . . 13 Melee . | . . . Knockbacks . | . . . Impact . | . . . Kinetic . | . . . Secondary . | . . . Self-Inflicted Damage 54 | . . 54 Shots 1 | . . 1 Rammed . | . . . Targets Rammed 1 | . 1 . Kicked 1 | . 1 . Crushed . | . . . Highest Temperature 210 | . 34 210 Average Temperature 62 | . 15 72 Received Heat Transfer 1053 | . 153 900 Siege Activations . | . . . Martial Activations . | . . . Shielding Activations . | . . . Robots Disrupted . | . . . Combat Hostiles . | . . . Robots Corrupted . | . . . Combat Hostiles . | . . . Parts Fried . | . . . Impact Corruptions . | . . . Robots Melted . | . . . Combat Hostiles . | . . . Parts Melted 3 | . . 3 Heat Transferred 1319 | . . 1319 Parts Sabotaged . | . . . Parts Stolen . | . . . Parts Stripped . | . . . Power Chain Reactions . | . . . Alert | -11 -10 -9 ------- Run | Yrd Mat Mat Maximum Alert Level 1 | . . 1 Low Security (%) 85 | 100 100 71 Level 1 14 | . . 28 Level 2 . | . . . Level 3 . | . . . Level 4 . | . . . Level 5 . | . . . High Security . | . . . Max Security . | . . . Peak Influence 230 | . 70 230 Initial . | . . . Average 79 | . 17 143 Influence Increases 688 | . 107 581 Destroy 0b10 Robot/C 360 | . 80 280 Destroy 0b10 Robot/NC 20 | . 5 15 Destroy Leader 84 | . 22 62 Successful Hack 21 | . . 21 Disable Machine 45 | . . 45 Destroy Structure 53 | . . 53 Partial Spotted 30 | . . 30 Lose Combat Pursuer 75 | . . 75 Influence Decreases 503 | . 107 396 Time Decay 303 | . 107 196 Lost Part 200 | . . 200 Squads Dispatched 4 | . . 4 Investigation 1 | . . 1 Extermination . | . . . Reinforcement 3 | . . 3 Assault . | . . . Garrison . | . . . Intercept . | . . . Searches Triggered . | . . . Construction Impeded . | . . . Haulers Reinforced . | . . . Active Scanning Responses . | . . . Cargo Convoy Interrupts . | . . . Stealth | -11 -10 -9 --------- Run | Yrd Mat Mat Distress Signals 3 | . 1 2 Communications Jammed . | . . . Distress Signals . | . . . Times Spotted 43 | . 7 36 Peak Tracking Total 10 | . 3 10 Tactical Retreats 7 | . . 7 ECM-based Alert Blocks 4 | . . 4 Traps | -11 -10 -9 ------- Run | Yrd Mat Mat Traps Triggered 1 | . . 1 Indirectly . | . . . Trap Hack Attempts . | . . . Triggered . | . . . Disarmed . | . . . Reprogrammed . | . . . Reused . | . . . Traps Extracted . | . . . Installed . | . . . Triggered . | . . . Objects Rigged 3 | . . 3 Exploded 2 | . . 2 Machines | -11 -10 -9 ---------- Run | Yrd Mat Mat Machines Disabled 3 | . . 3 Max in Single Turn 1 | . . 1 Machines Repaired . | . . . Machines Dismantled . | . . . Machines Sabotaged . | . . . Overloaded Fab Kills . | . . . Hacking | -11 -10 -9 --------- Run | Yrd Mat Mat Machines Accessed 5 | . 2 3 Terminals 4 | . 1 3 Fabricators . | . . . Repair Stations . | . . . Recycling Units 1 | . 1 . Scanalyzers . | . . . Garrison Access . | . . . Total Hacks 9 | . 2 7 Successful 5 | . 1 4 Failed 4 | . 1 3 Catastrophic 2 | . 1 1 Database Lockouts . | . . . Manual 6 | . 1 5 Terminals 8 | . 1 7 Fabricators . | . . . Repair Stations . | . . . Recycling Units 1 | . 1 . Scanalyzers . | . . . Garrison Access . | . . . Terminal Hacks 1 | . . 1 Alert Level 1 | . . 1 Fabricator Hacks . | . . . Repair Station Hacks . | . . . Recycling Unit Hacks 1 | . 1 . Report Inventory 1 | . 1 . Scanalyzer . | . . . Garrison Access Hacks . | . . . Unauthorized Hacks 3 | . . 3 Terminals 3 | . . 3 Botnet 1 | . . 1 Detonate 2 | . . 2 Fabricators . | . . . Repair Stations . | . . . Recycling Units . | . . . Scanalyzers . | . . . Garrison Access . | . . . Data Cores Recovered . | . . . Used . | . . . Hacking Detections 2 | . . 2 Full Trace Events . | . . . Feedback Events . | . . . Feedback Blocked . | . . . Robot Schematics Acquired . | . . . Robots Built . | . . . Authchips . | . . . Time . | . . . Total Robot Build Rating . | . . . Part Schematics Acquired . | . . . Parts Built . | . . . Authchips . | . . . Time . | . . . Total Part Build Rating . | . . . Part Studies Acquired . | . . . Parts Repaired . | . . . Time . | . . . Parts Recycled . | . . . Recycled Matter . | . . . Retrieved Matter . | . . . Retrieved Components . | . . . Parts Scanalyzed . | . . . Part Schematics Acquired . | . . . Parts Damaged . | . . . Bothacking | -11 -10 -9 ------------ Run | Yrd Mat Mat Used RIF Installer . | . . . Robots Hacked . | . . . Non-combat . | . . . Combat . | . . . Robot Hacks Applied . | . . . Relay Couplers Released . | . . . Fabnet Peak Effective % . | . . . Robots Rewired . | . . . Allies Hacked . | . . . Hacks Repelled . | . . . Allies | -11 -10 -9 -------- Run | Yrd Mat Mat Total Allies . | . . . Largest Group . | . . . Highest-Rated Group . | . . . Highest-Rated Ally . | . . . Total Orders . | . . . Ally Attacks . | . . . Total Damage . | . . . Kills . | . . . Allies Corrupted . | . . . Allies Melted . | . . . Intel | -11 -10 -9 ------- Run | Yrd Mat Mat Active Infowar (turns) 402 | . . 402 Optics 155 | . . 155 Sensors 225 | . . 225 ECM 160 | . . 160 Robot Analysis Total . | . . . Derelict Logs Recovered . | . . . Drone Launches . | . . . Drone Recoveries . | . . . Exploration | -11 -10 -9 ------------- Run | Yrd Mat Mat Turns Passed 1042 | 64 455 523 Spaces Moved 785 | 38 316 431 Core 33 | 26 . 7 Treads 4 | . . 4 Legs 468 | 12 316 140 Wheels . | . . . Hover . | . . . Flight 280 | . . 280 Fastest Speed 34 | 50 120 34 Average Speed 94 | 124 120 72 Slowest Speed 350 | 250 120 350 Overloaded Moves . | . . . Propulsion Burnouts . | . . . Robots Hopped 2 | . . 2 Potential Cave-ins . | . . . Cave-ins Triggered . | . . . Exploration Rate (%) 31 | 2 40 51 Regions Visited 2 Branch Regions . Pre-discovered Areas . | . . . Known Exits Taken . | . . . Unknown Exits Taken 2 | 1 1 . Scrap Searched . | . . . Spaces Dug . | . . . Terrain Destroyed 55 | . . 55 Melee . | . . . Projectile . | . . . AOE 55 | . . 55 Terrain Rammed . | . . . Walls Destroyed . | . . . Machines Disabled . | . . . Actions | -11 -10 -9 --------- Run | Yrd Mat Mat Total 966 | 54 360 552 Wait 21 | 1 6 14 Move 779 | 37 315 427 Hop 2 | . . 2 Pick Up 42 | 10 11 21 Fast Attach 1 | . . 1 Attach 28 | 6 1 21 Detach 2 | . . 2 Swap 2 | . 1 1 Drop 14 | . 6 8 Fire 74 | . 19 55 Melee . | . . . Ram . | . . . Kick 1 | . 1 . Crush . | . . . Escape Stasis . | . . . Rewire . | . . . Trap . | . . . Miscellaneous . | . . . Route ------- -11/Scrapyard -10/Materials (discovered 2 exits: *Mat / [*Min]) -9/Materials (discovered 2 exits: [*Min x2]) History --------- Turn | Location | Event 11 | -11/Scrapyard | Discovered new exit (range 16) 65 | -11/Scrapyard | Entered Materials 161 | -10/Materials | Discovered new exit (range 6) 315 | -10/Materials | Build established: Mutant 423 | -10/Materials | Discovered new exit (range 5) 520 | -10/Materials | Entered another Materials area 520 | -9/Materials | Evolved 2 slots: Propulsion x1, Utility x1 800 | -9/Materials | Lost 10 parts (1p5n2u2w) 873 | -9/Materials | Core integrity fell below 50% 889 | -9/Materials | Discovered new exit (range 17) 941 | -9/Materials | Lost 6 parts (1p1n1u3w) 971 | -9/Materials | Discovered new exit (range 9) 974 | -9/Materials | Core integrity fell below 20% 1043 | -9/Materials | Destroyed by Y-45 Defender with Beam Rifle Last Messages --------------- Terminal linked with 0 systems. Awaiting botnet instructions. 00964_ R-06 Scavenger collects Hcp. Matter Pod. 00968_ K-01 Serf cleans the Fusion Modulator. 00971_ EXIT=FOUND 00973_ K-01 Serf cleans the Fusion Modulator. 00979_ ALERT: Hostiles spotted, dispatching reinforcements to Terminal M004. 00980_ K-01 Serf collects debris. 01013_ Lgt. Ion Engine destroyed. 01016_ Critical hit (Burn: +37). 01016_ Flight Unit destroyed. 01019_ Dropped Sml. Laser. 01025_ Connecting with Terminal... >>Trojan(Detonate) Trojan loaded successfully. Testing... Scanning machine control network... No applicable machines found. Map ----- +----------------------------------------------------+ | " [[ # [ + # ! # # """ """ #??? | | " # # +[%% % # # """ """ #??? | | " # + ####+####+### # #??? | | " # """ ## ##?##%####%### ###########??? | | " # "R ## #??# [ #????????????? | | " # """ ## #??# #????????????? | | " # + + ???????????? | | """"""" ######## ######## # ??????????? | | # #??????# #???#### ####?????????? | | #??# #???#""" #???????????# | | "" """ #???/????#" #???????????# | | T" T" #??? ????#"| #???????????# | | "" % """ ???? ????#"" < #??????????## | | [ !% ???? ????#"! #??????????# | | ##/#???? ????#" #??????????# | | ??????? ????#""" #??????????# | | ## """ #?????? ????#### ##??????????# | | ## """ | # ######+####### #???????????# | | ###/##### ""? # #???????????## | | #? ???? ??? + #########????# | | ??""" ??? ???? # # #????# | | ???R" ??? ![?????############### # #????# | | ??? " ?? [????????????????????# # #????# | | ?????? ????????????????????????# + #????# | | ???????#?????????????########### # #????# | | #????????????????????# Y@ # ####+####????# | | #????????????????????# """"" # ### ######### | | #????????????????????# ""T"" # [ | | #????????????????????# g + | | #????????????????????# # | | #????????????????????# # """ | | #????????????????????# # """ | | ?????????????????????# # """ | | ?????????????????????########### | | ???????????????????????????????#######! | | ?????????????????????????????????????#!] """ | | ???????????????????????????????##????#!] """ | | ?????????????????????????????### ##??# """ | | ?????????????????????????????? ?# | | ?????????????????????????????? """""?# | | ????????????????????????????# """"" # """ | | ????????????????????????????# """"" # "T" """ | | ????????????????????????????# / """ """ | | ????????????????????????????#"" # | | ????????????????????????????#"Y # | | ????????????????????????????#"" ?###+######### | | ????????????????????????????# ?? ??????# | | ????????????????????????????#######??# ????# | | ?????????????????????????????????????# #??# | | ?????????????????????????????????????# #?? | +----------------------------------------------------+ Best States ------------- Heat Dissipation 28 Energy Generation 14 Energy Capacity 275 Matter Stores 460 Matter Capacity 500 Sight Range 20 Robot Scan Range 15 Terrain Scan Density 10 ECM Strength 1 Armor Coverage 150 Evasion (%) 63 Recoil Reduction 2 Item Schematics ----------------- None Robot Schematics ------------------ None Fabricated ------------ Nothing Repaired ---------- Nothing Studied --------- None Alien Tech Used ----------------- None Achievements -------------- DATA ERROR: Steam Global Achievement% For Emergencies Only Hydra I Have A Map? Organ Harvest Spot Them First There's More Where That Came From Challenges ------------ None Game ------ Seed GlidesysAutogunThrower Manual? 0 Play Time 00:35:43 Cumulative 16.7 hours Start 2026.04.19 @ 16:15:06 End 2026.04.19 @ 17:01:44 Sessions 1 Manual Loads 0 Difficulty Rogue Special Mode None Game No. 17 Rogue 17 Adventurer 0 Explorer 0 Win Type - Total 0 Types 0/0/0/0/0/0/0/0/0/0 Lore% 11 Gallery% 13 Achievement% 10 Wizard Run 0 Options --------- Layout 1 ASCII 0 Keyboard 1 Movement Numpad Keybinds 0 Fullscreen 1 Font 24/Smallcaps Map View 50x35 Zoom Use 0% Tactical HUD 1 Map Filters NONE Filters NONE Steam 1 RUN: a56167d4-dc1d-404d-a056-1432bb26a6fb